fUSD/lending_fUSD_20250806
["ID","MTS","AMOUNT","RATE_DAILY","PERIOD"]
[377589814,1754448741166,-2048.1,0.00036986,14]
[377589815,1754448741176,-400.0,0.00036986,14]
[377589816,1754448741186,-890.38,0.00036986,14]
[377589817,1754448741195,-400.0,0.00036986,14]
[377589818,1754448741206,-763.76,0.00036986,14]
[377589819,1754448741215,-435.26916505,0.00036986,14]
[377589820,1754448741225,-400.0,0.00036986,14]
[377589821,1754448741235,-400.0,0.00036986,14]
[377589822,1754448741244,-400.0,0.00036986,14]
[377589823,1754448741254,-887.62462747,0.00036986,7]
[377589824,1754448741264,-364.24808906,0.00036986,7]
[377589825,1754448741274,-554.46,0.00036986,14]
[377589826,1754448741284,-1978.5,0.00036986,14]
[377589827,1754448741294,-3061.86,0.00036986,14]
[377589828,1754448741303,-572.41,0.00036986,14]
[377589829,1754448741314,-1869.25,0.00036986,14]
[377589830,1754448741324,-1241.1,0.00036986,14]
[377589831,1754448741582,-1742.73,0.00036986,14]
[377589832,1754448741599,-400.0,0.00036986,14]
[377589833,1754448741611,-400.0,0.00036986,14]
[377589834,1754448741621,-589.98,0.00036986,14]
[377589835,1754448741630,-1056.28,0.00036986,14]
[377589836,1754448741639,-1789.45,0.00036986,14]
[377589837,1754448741648,-400.0,0.00036986,14]
[377589838,1754448741658,-3264.35,0.00036986,14]
[377589839,1754448741668,-400.0,0.00036986,14]
[377589840,1754448741677,-1465.39,0.00036986,14]
[377589841,1754448741686,-419.66480923,0.00036986,14]
[377589842,1754448741695,-719.58,0.00036986,14]
[377589843,1754448741704,-1335.74,0.00036986,14]
[377589844,1754448741714,-400.0,0.00036986,14]
[377589845,1754448741723,-1301.62,0.00036986,14]
[377589846,1754448741732,-400.0,0.00036986,14]
[377589847,1754448741743,-493.26,0.00036986,14]
[377589848,1754448741752,-1906.92,0.00036986,14]
[377589849,1754448741762,-400.0,0.00036986,14]
[377589850,1754448741771,-2206.71,0.00036986,14]
[377589851,1754448741780,-451.74,0.00036986,14]
[377589852,1754448741789,-400.0,0.00036986,14]
[377589853,1754448741799,-400.0,0.00036986,14]
[377589854,1754448741808,-400.0,0.00036986,14]
[377589855,1754448741818,-400.0,0.00036986,14]
[377589856,1754448741828,-400.0,0.00036986,14]
[377589857,1754448741838,-986.68,0.00036986,14]
[377589858,1754448741848,-1276.43,0.00036986,14]
[377589859,1754448741857,-922.85,0.00036986,14]
[377589860,1754448741867,-947.42,0.00036986,14]
[377589861,1754448741880,-400.0,0.00036986,14]
[377589862,1754448741890,-400.0,0.00036986,14]
[377589863,1754448741900,-2195.08,0.00036986,14]
[377589864,1754448741911,-1464.57,0.00036986,14]
[377589865,1754448741920,-2197.84,0.00036986,14]
[377589866,1754448741930,-804.15,0.00036986,14]
[377589867,1754448741940,-400.0,0.00036986,14]
[377589868,1754448741950,-802.3,0.00036986,14]
[377589869,1754448741960,-400.0,0.00036986,14]
[377589870,1754448741970,-820.58,0.00036986,14]
[377589871,1754448741979,-400.0,0.00036986,14]
[377589872,1754448741989,-684.16,0.00036986,14]
[377589873,1754448741999,-611.45,0.00036986,14]
[377589874,1754448742014,-744.31,0.00036986,14]
[377589875,1754448742025,-1536.69,0.00036986,14]
[377589876,1754448742036,-2158.92,0.00036986,14]
[377589877,1754448742046,-400.0,0.00036986,14]
[377589878,1754448742055,-383.12655975,0.00036986,14]
[377589879,1754448742067,-461.52,0.00036986,14]
[377589880,1754448742077,-400.0,0.00036986,14]
[377589881,1754448742087,-400.0,0.00036986,14]
[377589882,1754448742100,-400.0,0.00036986,14]
[377589883,1754448742120,-545.58,0.00036986,14]
[377589884,1754448742131,-850.08,0.00036986,14]
[377589885,1754448742141,-1521.24,0.00036986,14]
[377589886,1754448742150,-400.0,0.00036986,14]
[377589887,1754448742160,-300.0,0.00036986,14]
[377589888,1754448742169,-521.67,0.00036986,14]
[377589889,1754448742178,-400.0,0.00036986,14]
[377589890,1754448742187,-1086.81,0.00036986,14]
[377589891,1754448742196,-2094.08,0.00036986,14]
[377589892,1754448742206,-1148.89,0.00036986,14]
[377589893,1754448742215,-453.13,0.00036986,14]
[377589894,1754448742225,-400.0,0.00036986,14]
[377589895,1754448742234,-1804.32,0.00036986,14]
[377589896,1754448742243,-647.61,0.00036986,14]
[377589897,1754448742252,-688.12,0.00036986,14]
[377589898,1754448742261,-575.0,0.00036986,14]
[377589899,1754448742271,-460.78,0.00036986,14]
[377589900,1754448742280,-1509.88,0.00036986,14]
[377589901,1754448742291,-400.0,0.00036986,14]
[377589902,1754448742301,-400.0,0.00036986,14]
[377589903,1754448742312,-400.0,0.00036986,14]
[377589904,1754448742322,-400.0,0.00036986,14]
[377589905,1754448742331,-1836.14,0.00036986,14]
[377589906,1754448742341,-502.75,0.00036986,14]
[377589907,1754448742351,-400.0,0.00036986,14]
[377589908,1754448742360,-774.95,0.00036986,14]
[377589909,1754448742370,-449.13,0.00036986,14]
[377589910,1754448742380,-1622.09,0.00036986,14]
[377589911,1754448742389,-400.0,0.00036986,14]
[377589912,1754448742399,-2961.28,0.00036986,14]
[377589913,1754448742408,-1032.0,0.00036986,14]
[377589914,1754448742417,-878.8,0.00036986,14]
[377589915,1754448742426,-2880.34,0.00036986,14]
[377589916,1754448742435,-1829.37,0.00036986,14]
[377589917,1754448742446,-1462.8,0.00036986,14]
[377589918,1754448742457,-3418.23,0.00036986,14]
[377589919,1754448742466,-1158.06,0.00036986,14]
[377589920,1754448742475,-400.0,0.00036986,14]
[377589921,1754448742485,-400.0,0.00036986,14]
[377589922,1754448742495,-1563.04,0.00036986,14]
[377589923,1754448742504,-400.0,0.00036986,14]
[377589924,1754448742513,-650.36,0.00036986,14]
[377589925,1754448742522,-1923.25,0.00036986,14]
[377589926,1754448742531,-513.08662013,0.00036986,14]
[377589927,1754448742540,-481.19566783,0.00036986,14]
[377589928,1754448742552,-2020.14,0.00036986,14]
[377589929,1754448742564,-2285.89,0.00036986,14]
[377589930,1754448742578,-3412.85,0.00036986,14]
[377589931,1754448742587,-444.68,0.00036986,14]
[377589932,1754448742597,-400.0,0.00036986,14]
[377589933,1754448742606,-400.0,0.00036986,14]
[377589934,1754448742615,-400.0,0.00036986,14]
[377589935,1754448742624,-400.0,0.00036986,14]
[377589936,1754448742633,-1704.34,0.00036986,14]
[377589937,1754448742642,-400.0,0.00036986,14]
[377589938,1754448742651,-981.32,0.00036986,14]
[377589939,1754448742661,-161.14815636,0.00036986,14]
[377589940,1754448742671,-422.51,0.00036986,14]
[377589941,1754448742681,-1217.8,0.00036986,14]
[377589942,1754448742690,-400.0,0.00036986,14]
[377589943,1754448742702,-426.16,0.00036986,14]
[377589944,1754448742712,-719.56,0.00036986,14]
[377589945,1754448742721,-400.0,0.00036986,14]
[377589946,1754448742730,-2284.92,0.00036986,14]
[377589947,1754448742739,-2049.87,0.00036986,14]
[377589948,1754448742749,-400.0,0.00036986,14]
[377589949,1754448742758,-400.0,0.00036986,14]
[377589950,1754448742767,-536.37592317,0.00036986,14]
[377589951,1754448742777,-400.0,0.00036986,14]
[377589952,1754448742786,-400.0,0.00036986,14]
[377589953,1754448742796,-1324.35,0.00036986,14]
[377589954,1754448742806,-400.0,0.00036986,14]
[377589955,1754448742816,-400.0,0.00036986,14]
[377589956,1754448742825,-536.81,0.00036986,14]
[377589957,1754448742834,-400.0,0.00036986,14]
[377589958,1754448742844,-1978.73,0.00036986,14]
[377589959,1754448742853,-2066.75,0.00036986,14]
[377589960,1754448742863,-400.0,0.00036986,14]
[377589961,1754448742875,-400.0,0.00036986,14]
[377589962,1754448742884,-400.0,0.00036986,14]
[377589963,1754448742893,-2370.33,0.00036986,14]
[377589964,1754448742902,-400.0,0.00036986,14]
[377589965,1754448742913,-618.59,0.00036986,14]
[377589966,1754448742922,-400.0,0.00036986,14]
[377589967,1754448742931,-1380.46,0.00036986,14]
[377589968,1754448742941,-400.0,0.00036986,14]
[377589969,1754448742950,-681.38,0.00036986,14]
[377589970,1754448742959,-1918.49,0.00036986,14]
[377589971,1754448742969,-536.68,0.00036986,14]
[377589972,1754448742978,-400.0,0.00036986,14]
[377589973,1754448742989,-898.87,0.00036986,14]
[377589974,1754448742998,-1159.52,0.00036986,14]
[377589975,1754448743007,-589.89,0.00036986,14]
[377589976,1754448743017,-2526.57,0.00036986,14]
[377589977,1754448743026,-400.0,0.00036986,14]
[377589978,1754448743035,-400.0,0.00036986,14]
[377589979,1754448743044,-481.3,0.00036986,14]
[377589980,1754448743053,-400.0,0.00036986,14]
[377589981,1754448743063,-400.0,0.00036986,14]
[377589982,1754448743073,-1943.34,0.00036986,14]
[377589983,1754448743083,-771.1,0.00036986,14]
[377589984,1754448743092,-738.49,0.00036986,14]
[377589985,1754448743101,-1101.66,0.00036986,14]
[377589986,1754448743110,-2119.77,0.00036986,14]
[377589987,1754448743120,-400.0,0.00036986,14]
[377589988,1754448743128,-400.0,0.00036986,14]
[377589989,1754448743138,-400.0,0.00036986,14]
[377589990,1754448743148,-400.0,0.00036986,14]
[377589991,1754448743157,-2486.07,0.00036986,14]
[377589992,1754448743167,-400.0,0.00036986,14]
[377589993,1754448743176,-400.0,0.00036986,14]
[377589994,1754448743185,-400.0,0.00036986,14]
[377589995,1754448743195,-825.89,0.00036986,14]
[377589996,1754448743204,-400.0,0.00036986,14]
[377589997,1754448743214,-1301.09,0.00036986,14]
[377589998,1754448743223,-400.0,0.00036986,14]
[377589999,1754448743232,-400.0,0.00036986,14]
[377590000,1754448743241,-400.0,0.00036986,14]
[377590001,1754448743250,-400.0,0.00036986,14]
[377590002,1754448743258,-400.0,0.00036986,14]
[377590003,1754448743267,-681.33,0.00036986,14]
[377590004,1754448743277,-424.16,0.00036986,14]
[377590005,1754448743287,-1940.75,0.00036986,14]
[377590006,1754448743296,-256.14893833,0.00036986,14]
[377590007,1754448743305,-2332.46,0.00036986,14]
[377590008,1754448743314,-400.0,0.00036986,14]
[377590009,1754448743323,-400.0,0.00036986,14]
[377590010,1754448743332,-1594.04,0.00036986,14]
[377590011,1754448743342,-400.0,0.00036986,14]
[377590012,1754448743351,-2008.42,0.00036986,14]
[377590013,1754448743360,-400.0,0.00036986,14]
[377590014,1754448743369,-1556.67,0.00036986,14]
[377590015,1754448743390,-400.0,0.00036986,14]
[377590016,1754448743408,-400.0,0.00036986,14]
[377590017,1754448743427,-803.41,0.00036986,14]
[377590018,1754448743444,-1049.45,0.00036986,14]
[377590019,1754448743461,-436.49649776,0.00036986,14]
[377590020,1754448743480,-2287.11,0.00036986,14]
[377590021,1754448743500,-2094.9,0.00036986,14]
[377590022,1754448743518,-3089.8,0.00036986,14]
[377590023,1754448743537,-400.0,0.00036986,14]
[377590024,1754448743556,-2284.3,0.00036986,14]
[377590025,1754448743572,-1760.6,0.00036986,14]
[377590026,1754448743591,-904.68,0.00036986,14]
[377590027,1754448743604,-590.2,0.00036986,14]
[377590028,1754448743624,-400.0,0.00036986,14]
[377590029,1754448743638,-524.39,0.00036986,14]
[377590030,1754448743659,-538.64,0.00036986,14]
[377590031,1754448743676,-400.0,0.00036986,14]
[377590032,1754448743694,-477.4,0.00036986,14]
[377590033,1754448743710,-473.05,0.00036986,14]
[377590034,1754448743727,-1562.45,0.00036986,14]
[377590035,1754448743744,-992.23,0.00036986,14]
[377590036,1754448743760,-681.47,0.00036986,14]
[377590037,1754448743777,-317.8,0.00036986,14]
[377590038,1754448743794,-1343.91,0.00036986,14]
[377590039,1754448743811,-1123.2,0.00036986,14]
[377590040,1754448743827,-400.0,0.00036986,14]
[377590041,1754448743843,-402.35,0.00036986,14]
[377590042,1754448743859,-400.0,0.00036986,14]
[377590043,1754448743877,-400.0,0.00036986,14]
[377590044,1754448743893,-400.0,0.00036986,14]
[377590045,1754448743910,-659.8,0.00036986,14]
[377590046,1754448743926,-400.0,0.00036986,14]
[377590047,1754448743943,-905.29,0.00036986,14]
[377590048,1754448743961,-400.0,0.00036986,14]
[377590049,1754448743977,-400.0,0.00036986,14]
[377590050,1754448743995,-833.81,0.00036986,14]
[377590051,1754448744012,-400.0,0.00036986,14]
[377590052,1754448744027,-400.0,0.00036986,14]
[377590053,1754448744043,-423.93,0.00036986,14]
[377590054,1754448744060,-400.0,0.00036986,14]
[377590055,1754448744078,-400.0,0.00036986,14]
[377590056,1754448744094,-1620.39,0.00036986,14]
[377590057,1754448744109,-1647.26,0.00036986,14]
[377590058,1754448744125,-400.0,0.00036986,14]
[377590059,1754448744142,-2673.63,0.00036986,14]
[377590060,1754448744157,-400.0,0.00036986,14]
[377590061,1754448744173,-400.0,0.00036986,14]
[377590062,1754448744189,-3032.43,0.00036986,14]
[377590063,1754448744205,-2718.79,0.00036986,14]
[377590064,1754448744221,-591.66,0.00036986,14]
[377590065,1754448744236,-400.0,0.00036986,14]
[377590066,1754448744252,-652.53,0.00036986,14]
[377590067,1754448744267,-537.68,0.00036986,14]
[377590068,1754448744282,-400.0,0.00036986,14]
[377590069,1754448744298,-1352.85,0.00036986,14]
[377590070,1754448744313,-216.64,0.00036986,14]
[377590071,1754448744330,-1194.25,0.00036986,14]
[377590072,1754448744345,-1325.26,0.00036986,14]
[377590073,1754448744360,-687.17,0.00036986,14]
[377590074,1754448744375,-3219.58,0.00036986,14]
[377590075,1754448744390,-400.0,0.00036986,14]
[377590076,1754448744406,-400.0,0.00036986,14]
[377590077,1754448744421,-400.0,0.00036986,14]
[377590078,1754448744437,-2118.84,0.00036986,14]
[377590079,1754448744453,-2996.94,0.00036986,14]
[377590080,1754448744468,-1193.92,0.00036986,14]
[377590081,1754448744483,-400.0,0.00036986,14]
[377590082,1754448744498,-400.0,0.00036986,14]
[377590083,1754448744513,-400.0,0.00036986,14]
[377590084,1754448744527,-400.0,0.00036986,14]
[377590085,1754448744543,-400.0,0.00036986,14]
[377590086,1754448744560,-825.46,0.00036986,14]
[377590087,1754448744575,-400.0,0.00036986,14]
[377590088,1754448744590,-400.0,0.00036986,14]
[377590089,1754448744606,-509.96,0.00036986,14]
[377590090,1754448744620,-2113.04,0.00036986,14]
[377590091,1754448744635,-1273.79,0.00036986,14]
[377590092,1754448744651,-400.0,0.00036986,14]
[377590093,1754448744665,-2100.37,0.00036986,14]
[377590094,1754448744682,-400.0,0.00036986,14]
[377590095,1754448744698,-1931.44,0.00036986,14]
[377590096,1754448744712,-445.22,0.00036986,14]
[377590097,1754448744727,-400.0,0.00036986,14]
[377590098,1754448744742,-2053.25,0.00036986,14]
[377590099,1754448744758,-400.0,0.00036986,14]
[377590100,1754448744774,-400.0,0.00036986,14]
[377590101,1754448744791,-590.55,0.00036986,14]
[377590102,1754448744806,-1620.16,0.00036986,14]
[377590103,1754448744822,-400.0,0.00036986,14]
[377590104,1754448744837,-207.22619818,0.00036986,14]
[377590105,1754448744855,-457.71,0.00036986,14]
[377590106,1754448744872,-2044.76,0.00036986,14]
[377590107,1754448744888,-400.0,0.00036986,14]
[377590108,1754448744903,-260.44344665,0.00036986,10]
[377590109,1754448744919,-400.0,0.00036986,14]
[377590110,1754448744935,-2493.6,0.00036986,14]
[377590111,1754448744950,-1325.52,0.00036986,14]
[377590112,1754448744966,-3399.61,0.00036986,14]
[377590113,1754448744981,-400.0,0.00036986,14]
[377590114,1754448744996,-400.0,0.00036986,14]
[377590115,1754448745012,-400.0,0.00036986,14]
[377590116,1754448745027,-486.69,0.00036986,14]
[377590117,1754448745043,-1026.17,0.00036986,14]
[377590118,1754448745057,-400.0,0.00036986,14]
[377590119,1754448745072,-723.29,0.00036986,14]
[377590120,1754448745087,-651.88,0.00036986,14]
[377590121,1754448745102,-400.0,0.00036986,14]
[377590122,1754448745118,-443.84,0.00036986,14]
[377590123,1754448745133,-903.69,0.00036986,14]
[377590124,1754448745148,-1532.92,0.00036986,14]
[377590125,1754448745163,-400.0,0.00036986,14]
[377590126,1754448745178,-672.26,0.00036986,14]
[377590127,1754448745193,-400.0,0.00036986,14]
[377590128,1754448745208,-400.0,0.00036986,14]
[377590129,1754448745223,-1382.08,0.00036986,14]
[377590130,1754448745237,-400.0,0.00036986,14]
[377590131,1754448745254,-2614.37,0.00036986,14]
[377590132,1754448745269,-400.0,0.00036986,14]
[377590133,1754448745293,-1985.89,0.00036986,14]
[377590134,1754448745308,-400.0,0.00036986,14]
[377590135,1754448745324,-677.89,0.00036986,14]
[377590136,1754448745339,-400.0,0.00036986,14]
[377590137,1754448745353,-1383.95,0.00036986,14]
[377590138,1754448745368,-184.34792563,0.00036986,14]
[377590139,1754448745384,-400.0,0.00036986,14]
[377590140,1754448745399,-832.0,0.00036986,14]
[377590141,1754448745413,-400.0,0.00036986,14]
[377590142,1754448745428,-463.69649481,0.00036986,14]
[377590143,1754448745443,-579.93,0.00036986,14]
[377590144,1754448745457,-1028.28,0.00036986,14]
[377590145,1754448745472,-2180.85,0.00036986,14]
[377590146,1754448745485,-400.0,0.00036986,14]
[377590147,1754448745500,-717.13,0.00036986,14]
[377590148,1754448745515,-400.0,0.00036986,14]
[377590149,1754448745531,-400.0,0.00036986,14]
[377590150,1754448745547,-2778.5,0.00036986,14]
[377590151,1754448745564,-400.0,0.00036986,14]
[377590152,1754448745579,-400.0,0.00036986,14]
[377590153,1754448745596,-400.0,0.00036986,14]
[377590154,1754448745611,-2015.29,0.00036986,14]
[377590155,1754448745626,-3708.79,0.00036986,14]
[377590156,1754448745642,-752.93,0.00036986,14]
[377590157,1754448745657,-400.0,0.00036986,14]
[377590158,1754448745672,-308.03934585,0.00036986,14]
[377590159,1754448745687,-400.0,0.00036986,14]
[377590160,1754448745703,-735.15,0.00036986,14]
[377590161,1754448745717,-2553.57,0.00036986,14]
[377590162,1754448745733,-400.0,0.00036986,14]
[377590163,1754448745748,-1607.76,0.00036986,14]
[377590164,1754448745763,-400.0,0.00036986,14]
[377590165,1754448745778,-400.0,0.00036986,14]
[377590166,1754448745794,-757.96,0.00036986,14]
[377590167,1754448745809,-1838.27,0.00036986,14]
[377590168,1754448745826,-2459.31,0.00036986,14]
[377590169,1754448746049,-2248.73,0.00036986,14]
[377590170,1754448746065,-400.0,0.00036986,14]
[377590171,1754448746082,-865.96,0.00036986,14]
[377590172,1754448746099,-439.27201734,0.00036986,14]
[377590173,1754448746115,-1094.22,0.00036986,14]
[377590174,1754448746130,-842.75,0.00036986,14]
[377590175,1754448746147,-1141.46,0.00036986,14]
[377590176,1754448746161,-2023.14,0.00036986,14]
[377590177,1754448746176,-400.0,0.00036986,14]
[377590178,1754448746190,-1074.3,0.00036986,14]
[377590179,1754448746205,-1520.4,0.00036986,14]
[377590180,1754448746220,-414.57,0.00036986,14]
[377590181,1754448746234,-1903.84,0.00036986,14]
[377590182,1754448746248,-400.0,0.00036986,14]
[377590183,1754448746263,-400.0,0.00036986,14]
[377590184,1754448746279,-715.12,0.00036986,14]
[377590185,1754448746294,-1769.99,0.00036986,14]
[377590186,1754448746309,-3013.96,0.00036986,14]
[377590187,1754448746326,-450.72,0.00036986,14]
[377590188,1754448746341,-1189.15,0.00036986,14]
[377590189,1754448746356,-400.0,0.00036986,14]
[377590190,1754448746371,-1853.29,0.00036986,14]
[377590191,1754448746388,-400.0,0.00036986,14]
[377590192,1754448746404,-2171.13,0.00036986,14]
[377590193,1754448746419,-492.36,0.00036986,14]
[377590194,1754448746433,-1432.94,0.00036986,14]
[377590195,1754448746448,-2772.54,0.00036986,14]
[377590196,1754448746463,-400.0,0.00036986,14]
[377590197,1754448746479,-660.15,0.00036986,14]
[377590198,1754448746858,-687.86,0.00036986,14]
[377590199,1754448746870,-1512.02,0.00036986,14]
[377590200,1754448746883,-2123.08,0.00036986,14]
[377590201,1754448746893,-1752.0,0.00036986,14]
[377590202,1754448746902,-400.0,0.00036986,14]
[377590203,1754448746913,-1827.77,0.00036986,14]
[377590204,1754448746924,-400.0,0.00036986,14]
[377590205,1754448746935,-400.0,0.00036986,14]
[377590206,1754448746944,-710.17,0.00036986,14]
[377590207,1754448746955,-3809.64,0.00036986,14]
[377590208,1754448746966,-400.0,0.00036986,14]
[377590209,1754448746975,-400.0,0.00036986,14]
[377590210,1754448746985,-541.8,0.00036986,14]
[377590211,1754448746994,-2320.18,0.00036986,14]
[377590212,1754448747004,-400.0,0.00036986,14]
[377590213,1754448747015,-1290.75,0.00036986,14]
[377590214,1754448747024,-2988.22,0.00036986,14]
[377590215,1754448747034,-650.32,0.00036986,14]
[377590216,1754448747044,-432.19,0.00036986,14]
[377590217,1754448747053,-400.0,0.00036986,14]
[377590218,1754448747063,-786.46,0.00036986,14]
[377590219,1754448747074,-2067.35,0.00036986,14]
[377590220,1754448747083,-1893.56,0.00036986,14]
[377590221,1754448747093,-2121.86,0.00036986,14]
[377590222,1754448747102,-400.0,0.00036986,14]
[377590223,1754448747111,-436.89,0.00036986,14]
[377590224,1754448747120,-400.0,0.00036986,14]
[377590225,1754448747128,-1091.29,0.00036986,14]
[377590226,1754448747139,-2572.93,0.00036986,14]
[377590227,1754448747148,-403.94,0.00036986,14]
[377590228,1754448747157,-400.0,0.00036986,14]
[377590229,1754448747167,-456.45,0.00036986,14]
[377590230,1754448747176,-1090.58,0.00036986,14]
[377590231,1754448747186,-2572.33,0.00036986,14]
[377590232,1754448747195,-1310.5,0.00036986,14]
[377590233,1754448747204,-1680.95,0.00036986,14]
[377590234,1754448747213,-569.78,0.00036986,14]
[377590235,1754448747223,-1082.92,0.00036986,14]
[377590236,1754448747233,-615.57,0.00036986,14]
[377590237,1754448747242,-541.54,0.00036986,14]
[377590238,1754448747251,-1272.84,0.00036986,14]
[377590239,1754448747261,-1882.26,0.00036986,14]
[377590240,1754448747278,-400.0,0.00036986,14]
[377590241,1754448747287,-1821.93,0.00036986,14]
[377590242,1754448747296,-2393.94,0.00036986,14]
[377590243,1754448747305,-400.0,0.00036986,14]
[377590244,1754448747314,-819.87,0.00036986,14]
[377590245,1754448747324,-400.0,0.00036986,14]
[377590246,1754448747334,-1723.53,0.00036986,14]
[377590247,1754448747343,-472.45,0.00036986,14]
[377590248,1754448747352,-400.0,0.00036986,14]
[377590249,1754448747361,-400.0,0.00036986,14]
[377590250,1754448747370,-571.97,0.00036986,14]
[377590251,1754448747379,-400.0,0.00036986,14]
[377590252,1754448747388,-400.0,0.00036986,14]
[377590253,1754448747398,-2205.0,0.00036986,14]
[377590254,1754448747407,-2459.29,0.00036986,14]
[377590255,1754448747416,-1328.89,0.00036986,14]
[377590256,1754448747426,-1450.07,0.00036986,14]
[377590257,1754448747435,-498.72,0.00036986,14]
[377590258,1754448747444,-400.0,0.00036986,14]
[377590259,1754448747453,-400.0,0.00036986,14]
[377590260,1754448747463,-400.0,0.00036986,14]
[377590261,1754448747472,-400.0,0.00036986,14]
[377590262,1754448747481,-2050.67,0.00036986,14]
[377590263,1754448747490,-1998.0,0.00036986,14]
[377590264,1754448747499,-2177.61,0.00036986,14]
[377590265,1754448747508,-400.0,0.00036986,14]
[377590266,1754448747517,-2851.05,0.00036986,14]
[377590267,1754448747527,-565.91,0.00036986,14]
[377590268,1754448747535,-2230.94,0.00036986,14]
[377590269,1754448747544,-400.0,0.00036986,14]
[377590270,1754448747553,-365.96514159,0.00036986,14]
[377590271,1754448747562,-1023.05,0.00036986,14]
[377590272,1754448747571,-400.0,0.00036986,14]
[377590273,1754448747581,-1541.91,0.00036986,14]
[377590274,1754448747590,-1743.92,0.00036986,14]
[377590275,1754448747599,-518.06,0.00036986,14]
[377590276,1754448747608,-400.0,0.00036986,14]
[377590277,1754448747618,-1947.18,0.00036986,14]
[377590278,1754448747628,-1840.41,0.00036986,14]
[377590279,1754448747638,-1701.37,0.00036986,14]
[377590280,1754448747648,-3617.37,0.00036986,14]
[377590281,1754448747658,-400.0,0.00036986,14]
[377590282,1754448747668,-400.0,0.00036986,14]
[377590283,1754448747677,-1293.69,0.00036986,14]
[377590284,1754448747687,-400.0,0.00036986,14]
[377590285,1754448747697,-2062.42,0.00036986,14]
[377590286,1754448747707,-1163.86,0.00036986,14]
[377590287,1754448747718,-400.0,0.00036986,14]
[377590288,1754448747727,-1704.62,0.00036986,14]
[377590289,1754448747739,-1802.74,0.00036986,14]
[377590290,1754448747750,-400.0,0.00036986,14]
[377590291,1754448747759,-2082.15,0.00036986,14]
[377590292,1754448747768,-2004.98,0.00036986,14]
[377590293,1754448747778,-578.97,0.00036986,14]
[377590294,1754448747788,-1140.6,0.00036986,14]
[377590295,1754448747797,-193.5,0.00036986,14]
[377590296,1754448747807,-2059.67,0.00036986,14]
[377590297,1754448747816,-400.0,0.00036986,14]
[377590298,1754448747827,-400.0,0.00036986,14]
[377590299,1754448747836,-400.0,0.00036986,14]
[377590300,1754448747847,-400.0,0.00036986,14]
[377590301,1754448747856,-400.0,0.00036986,14]
[377590302,1754448747866,-400.0,0.00036986,14]
[377590303,1754448747879,-1854.33,0.00036986,14]
[377590304,1754448747890,-2421.14,0.00036986,14]
[377590305,1754448747899,-2008.93,0.00036986,14]
[377590306,1754448747911,-400.0,0.00036986,14]
[377590307,1754448747920,-1042.45,0.00036986,14]
[377590308,1754448747930,-904.89,0.00036986,14]
[377590309,1754448747942,-400.0,0.00036986,14]
[377590310,1754448747952,-1949.77,0.00036986,14]
[377590311,1754448747962,-717.97,0.00036986,14]
[377590312,1754448747972,-439.26,0.00036986,14]
[377590313,1754448747982,-995.71,0.00036986,14]